[Event "*** SCC Grand Prix: Titled Tuesday Blitz"]
[Site "Chess.com"]
[Date "2020.06.23"]
[Round "4"]
[White "Nathan_Filgueiras"]
[Black "Karateloru"]
[Result "0-1"]
[WhiteElo "2408"]
[BlackElo "2620"]
[TimeControl "180+1"]
[EndTime "10:41:10 PDT"]
[Termination "Karateloru won by resignation"]

1. e4 {[%clk 0:03:00.9]} 1... c5 {[%clk 0:02:59.5]} 2. Nf3 {[%clk 0:03:00.4]}
2... e6 {[%clk 0:03:00.4]} 3. d4 {[%clk 0:03:00.4]} 3... cxd4 {[%clk 0:03:01.3]}
4. Nxd4 {[%clk 0:03:01.2]} 4... Bc5 {[%clk 0:03:01.9]} 5. Nb3 {[%clk 0:02:57.2]}
5... Bb6 {[%clk 0:02:59.9]} 6. Nc3 {[%clk 0:02:49.9]} 6... Ne7 {[%clk
0:02:59.4]} 7. Bd3 {[%clk 0:02:13.6]} 7... O-O {[%clk 0:02:55.5]} 8. O-O {[%clk
0:02:13.5]} 8... f5 {[%clk 0:02:55.3]} 9. a4 {[%clk 0:02:08.4]} 9... Nbc6 {[%clk
0:02:53.3]} 10. Bg5 {[%clk 0:01:30.4]} 10... h6 {[%clk 0:02:46.8]} 11. Bxe7
{[%clk 0:01:30.3]} 11... Nxe7 {[%clk 0:02:47.5]} 12. a5 {[%clk 0:01:30.4]} 12...
Bc7 {[%clk 0:02:47]} 13. Qe2 {[%clk 0:01:30.7]} 13... fxe4 {[%clk 0:02:44.7]}
14. Nxe4 {[%clk 0:01:30.8]} 14... Nf5 {[%clk 0:02:43.1]} 15. Rad1 {[%clk
0:01:18.9]} 15... d5 {[%clk 0:02:42.8]} 16. Nec5 {[%clk 0:01:18.2]} 16... Qd6
{[%clk 0:02:42.3]} 17. g3 {[%clk 0:01:13]} 17... b6 {[%clk 0:02:41.8]} 18. Na6
{[%clk 0:00:47.2]} 18... Bxa6 {[%clk 0:02:41.3]} 19. Bxa6 {[%clk 0:00:48.1]}
19... bxa5 {[%clk 0:02:34.3]} 20. Rfe1 {[%clk 0:00:44]} 20... Rae8 {[%clk
0:02:27.4]} 21. Bb5 {[%clk 0:00:42.9]} 21... Re7 {[%clk 0:02:27.4]} 22. c4
{[%clk 0:00:40]} 22... Nh4 {[%clk 0:02:27.2]} 23. Nd4 {[%clk 0:00:32]} 23... a6
{[%clk 0:01:50.4]} 24. Ba4 {[%clk 0:00:18]} 24... Nf5 {[%clk 0:01:47.8]} 25.
Nxf5 {[%clk 0:00:16.7]} 25... Rxf5 {[%clk 0:01:47.1]} 26. cxd5 {[%clk
0:00:17.3]} 26... Rxd5 {[%clk 0:01:45.7]} 27. Bb3 {[%clk 0:00:17.6]} 27... Rxd1
{[%clk 0:01:44]} 28. Rxd1 {[%clk 0:00:18.1]} 28... Qc6 {[%clk 0:01:43.4]} 29.
Qc4 {[%clk 0:00:17.6]} 29... Qxc4 {[%clk 0:01:39.1]} 30. Bxc4 {[%clk 0:00:18.5]}
30... Bb6 {[%clk 0:01:39.5]} 31. Bxa6 {[%clk 0:00:18.1]} 31... Rc7 {[%clk
0:01:39.7]} 32. Bd3 {[%clk 0:00:15]} 32... Kf7 {[%clk 0:01:37.8]} 33. Kf1 {[%clk
0:00:14.9]} 33... Kf6 {[%clk 0:01:34.9]} 34. Ke2 {[%clk 0:00:15.1]} 34... e5
{[%clk 0:01:35]} 35. Rb1 {[%clk 0:00:13.5]} 35... Bd4 {[%clk 0:01:34.4]} 36. b4
{[%clk 0:00:12.6]} 36... a4 {[%clk 0:01:33.9]} 37. Rd1 {[%clk 0:00:05.1]} 37...
a3 {[%clk 0:01:33.6]} 38. Bb1 {[%clk 0:00:05.6]} 38... Rc3 {[%clk 0:01:28.5]}
39. Rd2 {[%clk 0:00:04.1]} 39... Rb3 {[%clk 0:01:28.6]} 40. Ba2 {[%clk
0:00:04.2]} 40... Rxb4 {[%clk 0:01:28.8]} 41. Rc2 {[%clk 0:00:04.6]} 41... Ke7
{[%clk 0:01:24.4]} 42. f3 {[%clk 0:00:03.8]} 42... g5 {[%clk 0:01:23.3]} 43. Rd2
{[%clk 0:00:04.3]} 43... h5 {[%clk 0:01:22.1]} 44. Rc2 {[%clk 0:00:04.8]} 44...
Kd6 {[%clk 0:01:21.6]} 45. Rd2 {[%clk 0:00:05.3]} 45... Rb8 {[%clk 0:01:19.3]}
46. Rc2 {[%clk 0:00:05.8]} 46... h4 {[%clk 0:01:18.6]} 47. Kd3 {[%clk
0:00:05.6]} 47... h3 {[%clk 0:01:17.5]} 48. Ke4 {[%clk 0:00:05.5]} 48... Rf8
{[%clk 0:01:00.2]} 49. Rd2 {[%clk 0:00:04.6]} 49... Kc5 {[%clk 0:00:59.5]} 50.
Rc2+ {[%clk 0:00:04.8]} 50... Kb4 {[%clk 0:00:59.4]} 51. Rc4+ {[%clk 0:00:05.2]}
51... Kb5 {[%clk 0:00:59.4]} 52. Rc2 {[%clk 0:00:06.1]} 52... Bg1 {[%clk
0:00:55]} 53. Rd2 {[%clk 0:00:05.7]} 53... Kb4 {[%clk 0:00:52.5]} 54. Rc2 {[%clk
0:00:06]} 54... Bd4 {[%clk 0:00:52.1]} 55. Rc4+ {[%clk 0:00:06.2]} 55... Ka5
{[%clk 0:00:52.2]} 56. Rc2 {[%clk 0:00:07.1]} 56... Kb6 {[%clk 0:00:40.8]} 57.
Rd2 {[%clk 0:00:07.4]} 57... Kc5 {[%clk 0:00:40.2]} 58. Rc2+ {[%clk 0:00:07.8]}
58... Kd6 {[%clk 0:00:40.4]} 59. Rd2 {[%clk 0:00:08.3]} 59... Ke7 {[%clk
0:00:40]} 60. Rc2 {[%clk 0:00:08.1]} 60... Rb8 {[%clk 0:00:39]} 61. f4 {[%clk
0:00:07.7]} 61... gxf4 {[%clk 0:00:36.2]} 62. gxf4 {[%clk 0:00:07.9]} 62... Rb5
{[%clk 0:00:36.9]} 63. fxe5 {[%clk 0:00:06.9]} 63... Bxe5 {[%clk 0:00:36.7]} 64.
Kf3 {[%clk 0:00:06.3]} 64... Rb4 {[%clk 0:00:35.3]} 65. Re2 {[%clk 0:00:05.1]}
65... Kf6 {[%clk 0:00:34.1]} 66. Rc2 {[%clk 0:00:05.6]} 66... Rf4+ {[%clk
0:00:34]} 67. Ke3 {[%clk 0:00:05.8]} 67... Rf1 {[%clk 0:00:34]} 68. Ke4 {[%clk
0:00:02.5]} 68... Re1+ {[%clk 0:00:27.6]} 69. Kf3 {[%clk 0:00:02.8]} 69... Kf5
{[%clk 0:00:26.9]} 70. Re2 {[%clk 0:00:01.9]} 70... Rh1 {[%clk 0:00:25]} 71. Rd2
{[%clk 0:00:01.1]} 71... Bxh2 {[%clk 0:00:23.5]} 72. Re2 {[%clk 0:00:01.4]}
72... Be5 {[%clk 0:00:23.2]} 73. Rd2 {[%clk 0:00:01.8]} 73... h2 {[%clk
0:00:23.3]} 74. Kg2 {[%clk 0:00:02.3]} 74... Rg1+ {[%clk 0:00:23.3]} 75. Kf3
{[%clk 0:00:02.8]} 0-1

[Event "*** SCC Grand Prix: Titled Tuesday Blitz"]
[Site "Chess.com"]
[Date "2020.06.23"]
[Round "4"]
[White "Chess_Boxer123"]
[Black "Balla_Tamas"]
[Result "1-0"]
[WhiteElo "2734"]
[BlackElo "2515"]
[TimeControl "180+1"]
[EndTime "10:41:13 PDT"]
[Termination "Chess_Boxer123 won by resignation"]

1. d4 {[%clk 0:03:00.9]} 1... f5 {[%clk 0:02:15.6]} 2. Bf4 {[%clk 0:02:57]} 2...
Nf6 {[%clk 0:02:14.6]} 3. e3 {[%clk 0:02:57]} 3... b6 {[%clk 0:02:15.1]} 4. h3
{[%clk 0:02:56.3]} 4... Bb7 {[%clk 0:02:14.1]} 5. Nf3 {[%clk 0:02:56.8]} 5... d6
{[%clk 0:02:13.7]} 6. Nbd2 {[%clk 0:02:56.6]} 6... e6 {[%clk 0:02:11]} 7. Bd3
{[%clk 0:02:52.8]} 7... Nbd7 {[%clk 0:02:09.5]} 8. Qe2 {[%clk 0:02:52.8]} 8...
Ne4 {[%clk 0:02:08.6]} 9. c3 {[%clk 0:02:51.2]} 9... Ndf6 {[%clk 0:02:07.7]} 10.
Rg1 {[%clk 0:02:50.7]} 10... g6 {[%clk 0:02:04.9]} 11. g4 {[%clk 0:02:50]} 11...
Bg7 {[%clk 0:02:02.2]} 12. Bb5+ {[%clk 0:02:45.4]} 12... c6 {[%clk 0:01:58.7]}
13. Bc4 {[%clk 0:02:45.3]} 13... Qe7 {[%clk 0:01:52.7]} 14. O-O-O {[%clk
0:02:15.9]} 14... O-O-O {[%clk 0:01:50.9]} 15. Kb1 {[%clk 0:02:16.1]} 15...
Nxd2+ {[%clk 0:01:42.9]} 16. Nxd2 {[%clk 0:02:14.5]} 16... e5 {[%clk 0:01:42]}
17. Bh2 {[%clk 0:02:13.7]} 17... Ne4 {[%clk 0:01:25.9]} 18. gxf5 {[%clk
0:02:09.8]} 18... Nxd2+ {[%clk 0:01:24.1]} 19. Qxd2 {[%clk 0:02:02.6]} 19...
gxf5 {[%clk 0:01:24.3]} 20. d5 {[%clk 0:01:47]} 20... Rhf8 {[%clk 0:01:13.8]}
21. dxc6 {[%clk 0:01:45.5]} 21... Bxc6 {[%clk 0:01:12.9]} 22. Bd5 {[%clk
0:01:46.1]} 22... Bxd5 {[%clk 0:01:09.1]} 23. Qxd5 {[%clk 0:01:47]} 23... Rd7
{[%clk 0:01:09.1]} 24. Qa8+ {[%clk 0:01:41.3]} 24... Kc7 {[%clk 0:01:09.1]} 25.
Qxa7+ {[%clk 0:01:41.5]} 25... Kc6 {[%clk 0:01:09.7]} 26. Qa4+ {[%clk 0:01:37]}
26... Kb7 {[%clk 0:01:09.7]} 27. Qb5 {[%clk 0:01:25.4]} 27... Qe6 {[%clk
0:01:05.9]} 28. Qd5+ {[%clk 0:00:54.8]} 28... Qxd5 {[%clk 0:01:05.2]} 29. Rxd5
{[%clk 0:00:55.7]} 29... Kc6 {[%clk 0:01:06]} 30. c4 {[%clk 0:00:56.1]} 30...
Rf6 {[%clk 0:01:04.6]} 31. Bxe5 {[%clk 0:00:51.1]} 31... Rg6 {[%clk 0:00:54.2]}
32. Rxg6 {[%clk 0:00:48]} 32... hxg6 {[%clk 0:00:55.1]} 33. Bxg7 {[%clk
0:00:47.7]} 33... Rxg7 {[%clk 0:00:55]} 34. Rd4 {[%clk 0:00:45.2]} 34... g5
{[%clk 0:00:54.4]} 35. h4 {[%clk 0:00:42.7]} 35... g4 {[%clk 0:00:52.7]} 36. Rf4
{[%clk 0:00:42.7]} 36... Rh7 {[%clk 0:00:52.6]} 37. Rxf5 {[%clk 0:00:41.1]}
37... Rxh4 {[%clk 0:00:53.2]} 38. Rf4 {[%clk 0:00:39.7]} 38... Rh2 {[%clk
0:00:52.7]} 39. b4 {[%clk 0:00:35.4]} 39... Rg2 {[%clk 0:00:51.8]} 40. a4 {[%clk
0:00:19.5]} 40... Kd7 {[%clk 0:00:48.9]} 41. Kc1 {[%clk 0:00:16.4]} 41... Rg1+
{[%clk 0:00:45.4]} 42. Kc2 {[%clk 0:00:16]} 42... Rg2 {[%clk 0:00:43.1]} 43. Kc3
{[%clk 0:00:15.5]} 43... Rg1 {[%clk 0:00:42.6]} 44. a5 {[%clk 0:00:15]} 44...
bxa5 {[%clk 0:00:42]} 45. bxa5 {[%clk 0:00:15.9]} 45... Kc6 {[%clk 0:00:42.2]}
46. Rf5 {[%clk 0:00:13.1]} 46... g3 {[%clk 0:00:41.1]} 47. fxg3 {[%clk
0:00:12.6]} 47... Rxg3 {[%clk 0:00:41.2]} 48. Kd4 {[%clk 0:00:13]} 48... Rg1
{[%clk 0:00:41.2]} 49. Ke4 {[%clk 0:00:07.2]} 49... Rc1 {[%clk 0:00:40.4]} 50.
Kd3 {[%clk 0:00:07.6]} 50... Rd1+ {[%clk 0:00:39.7]} 51. Kc2 {[%clk 0:00:08.1]}
51... Re1 {[%clk 0:00:37.7]} 52. Kd2 {[%clk 0:00:07.4]} 52... Ra1 {[%clk
0:00:37.6]} 53. Rd5 {[%clk 0:00:07.4]} 53... Ra4 {[%clk 0:00:35.9]} 54. Kc3
{[%clk 0:00:07.3]} 54... Ra3+ {[%clk 0:00:35.7]} 55. Kd4 {[%clk 0:00:07.3]}
55... Ra1 {[%clk 0:00:36.2]} 56. Rh5 {[%clk 0:00:07.3]} 56... Rd1+ {[%clk
0:00:35.9]} 57. Kc3 {[%clk 0:00:07.3]} 57... Rc1+ {[%clk 0:00:36.3]} 58. Kd3
{[%clk 0:00:07.7]} 58... Ra1 {[%clk 0:00:36.4]} 59. e4 {[%clk 0:00:07.5]} 59...
Ra3+ {[%clk 0:00:37.3]} 60. Kd4 {[%clk 0:00:07.8]} 60... Ra1 {[%clk 0:00:37]}
61. e5 {[%clk 0:00:07.9]} 61... Rd1+ {[%clk 0:00:36.8]} 62. Kc3 {[%clk
0:00:07.6]} 62... dxe5 {[%clk 0:00:36.6]} 63. Rxe5 {[%clk 0:00:08.5]} 63... Kb7
{[%clk 0:00:36.2]} 64. Rd5 {[%clk 0:00:06.4]} 64... Rh1 {[%clk 0:00:35]} 65. Kb4
{[%clk 0:00:06.4]} 65... Rb1+ {[%clk 0:00:25.8]} 66. Kc5 {[%clk 0:00:06.6]}
66... Ra1 {[%clk 0:00:25.9]} 67. Kd6 {[%clk 0:00:06.4]} 67... Rh1 {[%clk
0:00:24.8]} 68. Rb5+ {[%clk 0:00:04.9]} 68... Ka6 {[%clk 0:00:24.1]} 69. Rb2
{[%clk 0:00:03.7]} 69... Rd1+ {[%clk 0:00:21.6]} 70. Kc6 {[%clk 0:00:02.1]}
70... Kxa5 {[%clk 0:00:20.3]} 71. c5 {[%clk 0:00:02.6]} 71... Rc1 {[%clk
0:00:19.3]} 72. Kd6 {[%clk 0:00:02.8]} 72... Ka6 {[%clk 0:00:19]} 73. c6 {[%clk
0:00:03]} 73... Rd1+ {[%clk 0:00:18.8]} 74. Kc7 {[%clk 0:00:03.3]} 74... Rc1
{[%clk 0:00:19.7]} 75. Kd7 {[%clk 0:00:03.4]} 75... Rd1+ {[%clk 0:00:20]} 76.
Kc8 {[%clk 0:00:03.8]} 76... Rd2 {[%clk 0:00:20.8]} 77. Rxd2 {[%clk 0:00:02.5]}
77... Kb6 {[%clk 0:00:20.4]} 78. c7 {[%clk 0:00:03.4]} 78... Kc5 {[%clk
0:00:20.3]} 79. Kd8 {[%clk 0:00:04.3]} 1-0

[Event "*** SCC Grand Prix: Titled Tuesday Blitz"]
[Site "Chess.com"]
[Date "2020.06.23"]
[Round "4"]
[White "FedaMaster"]
[Black "1977Ivan"]
[Result "1-0"]
[WhiteElo "2489"]
[BlackElo "2657"]
[TimeControl "180+1"]
[EndTime "10:41:13 PDT"]
[Termination "FedaMaster won on time"]

1. e4 {[%clk 0:03:00.9]} 1... c5 {[%clk 0:02:59.2]} 2. Nf3 {[%clk 0:02:58.5]}
2... e6 {[%clk 0:02:59.4]} 3. d4 {[%clk 0:02:54.4]} 3... cxd4 {[%clk 0:03:00.3]}
4. c3 {[%clk 0:02:54.6]} 4... dxc3 {[%clk 0:02:59.2]} 5. Nxc3 {[%clk 0:02:54.2]}
5... Nc6 {[%clk 0:02:59.7]} 6. Bc4 {[%clk 0:02:54.3]} 6... Bb4 {[%clk 0:03:00]}
7. Qc2 {[%clk 0:02:53.7]} 7... Nge7 {[%clk 0:03:00]} 8. O-O {[%clk 0:02:52.8]}
8... O-O {[%clk 0:03:00]} 9. Rd1 {[%clk 0:02:52.6]} 9... Ng6 {[%clk 0:02:53.8]}
10. Bg5 {[%clk 0:02:39.9]} 10... Be7 {[%clk 0:02:50.8]} 11. Bxe7 {[%clk
0:02:35.9]} 11... Qxe7 {[%clk 0:02:50.4]} 12. Nb5 {[%clk 0:02:36.3]} 12... a6
{[%clk 0:02:36.6]} 13. Nd6 {[%clk 0:02:35.7]} 13... b5 {[%clk 0:02:37.1]} 14.
Be2 {[%clk 0:02:27.2]} 14... Ra7 {[%clk 0:02:35.8]} 15. Qc5 {[%clk 0:02:12]}
15... Qd8 {[%clk 0:01:43.3]} 16. Rac1 {[%clk 0:02:03.6]} 16... Bb7 {[%clk
0:01:31.8]} 17. Qe3 {[%clk 0:01:42.1]} 17... Ba8 {[%clk 0:01:27.3]} 18. Rxc6
{[%clk 0:01:39]} 18... Bxc6 {[%clk 0:01:09.2]} 19. Qxa7 {[%clk 0:01:38.7]} 19...
Qa5 {[%clk 0:01:06.6]} 20. a3 {[%clk 0:01:24.2]} 20... Nf4 {[%clk 0:01:01.9]}
21. Qe3 {[%clk 0:01:23.5]} 21... Nxe2+ {[%clk 0:00:56.5]} 22. Qxe2 {[%clk
0:01:23.8]} 22... b4 {[%clk 0:00:55.8]} 23. Qd2 {[%clk 0:01:17.3]} 23... Rb8
{[%clk 0:00:51.5]} 24. Qf4 {[%clk 0:00:43.9]} 24... Rf8 {[%clk 0:00:47.3]} 25.
Qe5 {[%clk 0:00:20.4]} 25... Qa4 {[%clk 0:00:41.2]} 26. Qd4 {[%clk 0:00:20.2]}
26... bxa3 {[%clk 0:00:37.5]} 27. bxa3 {[%clk 0:00:17.4]} 27... Qxa3 {[%clk
0:00:33.8]} 28. Ne5 {[%clk 0:00:16.5]} 28... Qa4 {[%clk 0:00:14.6]} 29. Nxc6
{[%clk 0:00:13.6]} 29... Qxc6 {[%clk 0:00:14.6]} 30. e5 {[%clk 0:00:13.4]} 30...
a5 {[%clk 0:00:12.1]} 31. h3 {[%clk 0:00:12.5]} 31... a4 {[%clk 0:00:11.8]} 32.
Ra1 {[%clk 0:00:10.6]} 32... f6 {[%clk 0:00:11.1]} 33. Qxa4 {[%clk 0:00:08.3]}
33... Qxa4 {[%clk 0:00:09.4]} 34. Rxa4 {[%clk 0:00:09.2]} 34... fxe5 {[%clk
0:00:09.8]} 35. Ra7 {[%clk 0:00:07.8]} 35... Rd8 {[%clk 0:00:09.2]} 36. Nb7
{[%clk 0:00:03.7]} 36... Rc8 {[%clk 0:00:09]} 37. Nd6 {[%clk 0:00:03.8]} 37...
Rd8 {[%clk 0:00:09.1]} 38. Ne4 {[%clk 0:00:03.9]} 38... Kf8 {[%clk 0:00:08.1]}
39. Nd6 {[%clk 0:00:03.2]} 39... Ke7 {[%clk 0:00:07.8]} 40. Nc4 {[%clk
0:00:03.7]} 40... Rc8 {[%clk 0:00:07.9]} 41. Nxe5 {[%clk 0:00:03.6]} 41... Rc1+
{[%clk 0:00:06.3]} 42. Kh2 {[%clk 0:00:03.8]} 42... Kd6 {[%clk 0:00:06.5]} 43.
Nf7+ {[%clk 0:00:03.2]} 43... Ke7 {[%clk 0:00:05.1]} 44. Ng5 {[%clk 0:00:04.1]}
44... e5 {[%clk 0:00:04.1]} 45. Ne4 {[%clk 0:00:04]} 45... Ke6 {[%clk
0:00:04.1]} 46. Ra6+ {[%clk 0:00:04.3]} 46... Kd5 {[%clk 0:00:04.4]} 47. Nd6
{[%clk 0:00:04.6]} 47... Kd4 {[%clk 0:00:04.4]} 48. f3 {[%clk 0:00:05]} 48...
Rc2 {[%clk 0:00:04.4]} 49. Nb5+ {[%clk 0:00:04.5]} 49... Ke3 {[%clk 0:00:04.6]}
50. Nd6 {[%clk 0:00:04.5]} 50... Kf4 {[%clk 0:00:04]} 51. Ra4+ {[%clk
0:00:04.8]} 51... Ke3 {[%clk 0:00:04.1]} 52. Nf5+ {[%clk 0:00:05]} 52... Kf2
{[%clk 0:00:04]} 53. Nxg7 {[%clk 0:00:05.7]} 53... d5 {[%clk 0:00:04.2]} 54. Rg4
{[%clk 0:00:05.9]} 54... d4 {[%clk 0:00:04.4]} 55. Re4 {[%clk 0:00:05.8]} 55...
d3 {[%clk 0:00:04.5]} 56. Rxe5 {[%clk 0:00:06.4]} 56... Re2 {[%clk 0:00:04.4]}
57. Rd5 {[%clk 0:00:07.3]} 57... d2 {[%clk 0:00:04.6]} 58. Nf5 {[%clk 0:00:07]}
58... Ke1 {[%clk 0:00:05]} 59. Ng3 {[%clk 0:00:06.3]} 59... Re3 {[%clk
0:00:04.2]} 60. Rd4 {[%clk 0:00:05.6]} 60... d1=Q {[%clk 0:00:03]} 61. Rxd1+
{[%clk 0:00:05.3]} 61... Kxd1 {[%clk 0:00:03.9]} 62. Nf5 {[%clk 0:00:05.2]}
62... Re5 {[%clk 0:00:04.2]} 63. g4 {[%clk 0:00:05.3]} 63... Ke2 {[%clk
0:00:04.1]} 64. f4 {[%clk 0:00:05.9]} 64... Rb5 {[%clk 0:00:04.2]} 65. Kg3
{[%clk 0:00:06.2]} 65... Rb3+ {[%clk 0:00:03.9]} 66. Kh4 {[%clk 0:00:06.8]}
66... Ra3 {[%clk 0:00:03.8]} 67. Ng7 {[%clk 0:00:06.8]} 67... Kf3 {[%clk
0:00:03.5]} 68. f5 {[%clk 0:00:07.1]} 68... Kg2 {[%clk 0:00:03.9]} 69. f6 {[%clk
0:00:07.6]} 69... Rxh3+ {[%clk 0:00:03.6]} 70. Kg5 {[%clk 0:00:08.5]} 70... Rf3
{[%clk 0:00:03.8]} 71. Nf5 {[%clk 0:00:09.4]} 71... Ra3 {[%clk 0:00:02.4]} 72.
f7 {[%clk 0:00:09.9]} 72... Ra8 {[%clk 0:00:02.6]} 73. Nd6 {[%clk 0:00:09.2]}
73... Rf8 {[%clk 0:00:01.5]} 74. Kf6 {[%clk 0:00:08.6]} 74... Kg3 {[%clk
0:00:01.8]} 75. g5 {[%clk 0:00:09.1]} 1-0

[Event "*** SCC Grand Prix: Titled Tuesday Blitz"]
[Site "Chess.com"]
[Date "2020.06.23"]
[Round "4"]
[White "SARGISMV"]
[Black "Muracle"]
[Result "0-1"]
[WhiteElo "2439"]
[BlackElo "2604"]
[TimeControl "180+1"]
[EndTime "10:41:14 PDT"]
[Termination "Muracle won on time"]

1. Nf3 {[%clk 0:03:00.9]} 1... g6 {[%clk 0:02:57.7]} 2. c4 {[%clk 0:03:01.8]}
2... Nf6 {[%clk 0:02:57.3]} 3. Nc3 {[%clk 0:03:02.1]} 3... d5 {[%clk 0:02:57.4]}
4. cxd5 {[%clk 0:03:01.9]} 4... Nxd5 {[%clk 0:02:58.3]} 5. Qa4+ {[%clk
0:03:02.2]} 5... Nc6 {[%clk 0:02:57.8]} 6. Ne5 {[%clk 0:02:50.9]} 6... Qd6
{[%clk 0:02:55.9]} 7. Nxc6 {[%clk 0:02:50.2]} 7... Qxc6 {[%clk 0:02:55.9]} 8.
Qxc6+ {[%clk 0:02:49.4]} 8... bxc6 {[%clk 0:02:56.8]} 9. g3 {[%clk 0:02:48.8]}
9... Nb4 {[%clk 0:02:53.1]} 10. Rb1 {[%clk 0:02:39.1]} 10... Bf5 {[%clk
0:02:51.9]} 11. d3 {[%clk 0:02:38.8]} 11... Bg7 {[%clk 0:02:50.1]} 12. Bg2
{[%clk 0:02:32.6]} 12... Rb8 {[%clk 0:02:47.2]} 13. O-O {[%clk 0:02:25.3]} 13...
Nxd3 {[%clk 0:02:17.2]} 14. Bxc6+ {[%clk 0:02:20.2]} 14... Kd8 {[%clk
0:02:16.7]} 15. Rd1 {[%clk 0:01:52.9]} 15... Kc8 {[%clk 0:02:04.7]} 16. e4
{[%clk 0:01:40.5]} 16... Nxc1 {[%clk 0:01:50.7]} 17. Rdxc1 {[%clk 0:01:34.6]}
17... Bxc3 {[%clk 0:01:39.3]} 18. Rxc3 {[%clk 0:01:31.8]} 18... Bd7 {[%clk
0:01:24.5]} 19. Bxd7+ {[%clk 0:01:30]} 19... Kxd7 {[%clk 0:01:24.5]} 20. Rd1+
{[%clk 0:01:30.5]} 20... Kc8 {[%clk 0:01:24.9]} 21. Rdc1 {[%clk 0:01:30.3]}
21... Rb7 {[%clk 0:01:24.8]} 22. b4 {[%clk 0:01:28.7]} 22... Rd8 {[%clk
0:01:24.2]} 23. a3 {[%clk 0:01:26.1]} 23... Rd4 {[%clk 0:01:16.9]} 24. f3 {[%clk
0:01:25.8]} 24... Kd7 {[%clk 0:01:13.5]} 25. Kf2 {[%clk 0:01:25.6]} 25... a5
{[%clk 0:01:12.9]} 26. bxa5 {[%clk 0:01:20.5]} 26... Ra7 {[%clk 0:01:08.3]} 27.
Ke3 {[%clk 0:01:07.3]} 27... Ra4 {[%clk 0:01:06.9]} 28. Rd1+ {[%clk 0:00:53.1]}
28... Kc8 {[%clk 0:01:05.5]} 29. Rd5 {[%clk 0:00:52]} 29... R4xa5 {[%clk
0:01:02.9]} 30. Rxa5 {[%clk 0:00:51.7]} 30... Rxa5 {[%clk 0:01:03.8]} 31. Kd4
{[%clk 0:00:52.4]} 31... Kd7 {[%clk 0:01:00.8]} 32. Kc4 {[%clk 0:00:51.8]} 32...
Kc6 {[%clk 0:00:58.4]} 33. Kb4+ {[%clk 0:00:52]} 33... Kb6 {[%clk 0:00:58.8]}
34. a4 {[%clk 0:00:49.4]} 34... c5+ {[%clk 0:00:48.5]} 35. Kb3 {[%clk
0:00:46.1]} 35... Ra7 {[%clk 0:00:47]} 36. Rd3 {[%clk 0:00:42.8]} 36... Kc6
{[%clk 0:00:46.8]} 37. Rd8 {[%clk 0:00:41.1]} 37... h5 {[%clk 0:00:31.9]} 38.
Rc8+ {[%clk 0:00:36.6]} 38... Kd6 {[%clk 0:00:31.1]} 39. f4 {[%clk 0:00:30.8]}
39... Rb7+ {[%clk 0:00:29.8]} 40. Kc3 {[%clk 0:00:19.5]} 40... Rb4 {[%clk
0:00:28.2]} 41. e5+ {[%clk 0:00:19.7]} 41... Kd7 {[%clk 0:00:24.7]} 42. Ra8
{[%clk 0:00:15.7]} 42... Re4 {[%clk 0:00:22.6]} 43. a5 {[%clk 0:00:15.5]} 43...
Ra4 {[%clk 0:00:20]} 44. Ra7+ {[%clk 0:00:12.7]} 44... Ke6 {[%clk 0:00:18.2]}
45. Rc7 {[%clk 0:00:09.5]} 45... Rxa5 {[%clk 0:00:16.2]} 46. Kc4 {[%clk
0:00:10]} 46... Ra2 {[%clk 0:00:13.8]} 47. Rc6+ {[%clk 0:00:02.8]} 47... Kd7
{[%clk 0:00:13.2]} 48. Rb6 {[%clk 0:00:02.2]} 48... Rxh2 {[%clk 0:00:12.2]} 49.
Kxc5 {[%clk 0:00:02.6]} 49... Rc2+ {[%clk 0:00:09]} 50. Kd5 {[%clk 0:00:02.6]}
50... Rd2+ {[%clk 0:00:09.3]} 51. Ke4 {[%clk 0:00:02.9]} 51... Rc2 {[%clk
0:00:07.7]} 52. Rb7+ {[%clk 0:00:03]} 52... Rc7 {[%clk 0:00:07.6]} 53. Rb8
{[%clk 0:00:03.9]} 53... Ke6 {[%clk 0:00:07.2]} 54. Rf8 {[%clk 0:00:04.3]} 54...
Rc4+ {[%clk 0:00:06.9]} 55. Kf3 {[%clk 0:00:04.4]} 55... f6 {[%clk 0:00:06.9]}
56. exf6 {[%clk 0:00:02.7]} 56... exf6 {[%clk 0:00:07.8]} 57. Ra8 {[%clk
0:00:02.5]} 57... Rc5 {[%clk 0:00:06]} 58. Ra6+ {[%clk 0:00:02.5]} 58... Kf5
{[%clk 0:00:06.1]} 59. Ra3 {[%clk 0:00:03.4]} 59... Rb5 {[%clk 0:00:05.9]} 60.
Rc3 {[%clk 0:00:03.2]} 60... Rd5 {[%clk 0:00:05.7]} 61. Rb3 {[%clk 0:00:03.5]}
61... Rc5 {[%clk 0:00:06.1]} 62. Ra3 {[%clk 0:00:03.8]} 62... Rb5 {[%clk
0:00:06]} 63. Rc3 {[%clk 0:00:03.9]} 63... g5 {[%clk 0:00:06.3]} 64. fxg5 {[%clk
0:00:03.7]} 64... fxg5 {[%clk 0:00:07.2]} 65. Rd3 {[%clk 0:00:02.6]} 65... Re5
{[%clk 0:00:07.3]} 66. Kg2 {[%clk 0:00:02.7]} 66... Re4 {[%clk 0:00:06]} 0-1